fUST/lending_fUST_20260531
["ID","MTS","AMOUNT","RATE_DAILY","PERIOD"]
[423553947,1780217448000,-500.0,8.493e-05,2]
[423553951,1780217448000,-497.5773093,8.493e-05,2]
[423553949,1780217448000,-500.0,8.493e-05,2]
[423553927,1780217448000,-500.0,8.493e-05,2]
[423553937,1780217448000,-500.0,8.493e-05,2]
[423553930,1780217448000,-500.0,8.493e-05,2]
[423553910,1780217448000,-640.59302634,8.493e-05,2]
[423553928,1780217448000,-500.0,8.493e-05,2]
[423553953,1780217448000,-500.0,8.493e-05,2]
[423553898,1780217448000,-300.0,8.355e-05,2]
[423553902,1780217448000,-300.0,8.355e-05,2]
[423553899,1780217448000,-300.0,8.355e-05,2]
[423553900,1780217448000,-300.0,8.355e-05,2]
[423553901,1780217448000,-300.0,8.355e-05,2]
[423553904,1780217448000,-600.0,8.355e-05,2]
[423553905,1780217448000,-169.395318,8.416e-05,2]
[423553903,1780217448000,-300.0,8.355e-05,2]
[423553906,1780217448000,-500.0,8.493e-05,2]
[423553907,1780217448000,-500.0,8.493e-05,2]
[423553909,1780217448000,-500.0,8.493e-05,2]
[423553912,1780217448000,-500.0,8.493e-05,2]
[423553911,1780217448000,-500.0,8.493e-05,2]
[423553908,1780217448000,-500.0,8.493e-05,2]
[423553914,1780217448000,-500.0,8.493e-05,2]
[423553913,1780217448000,-500.0,8.493e-05,2]
[423553915,1780217448000,-500.0,8.493e-05,2]
[423553919,1780217448000,-500.0,8.493e-05,2]
[423553917,1780217448000,-500.0,8.493e-05,2]
[423553918,1780217448000,-633.52,8.493e-05,2]
[423553921,1780217448000,-500.0,8.493e-05,2]
[423553920,1780217448000,-500.0,8.493e-05,2]
[423553925,1780217448000,-500.0,8.493e-05,2]
[423553926,1780217448000,-500.0,8.493e-05,2]
[423553929,1780217448000,-500.0,8.493e-05,2]
[423553964,1780217448000,-500.0,8.493e-05,2]
[423553916,1780217448000,-500.0,8.493e-05,2]
[423553963,1780217448000,-500.0,8.493e-05,2]
[423553991,1780217448000,-500.0,8.493e-05,2]
[423553983,1780217448000,-500.0,8.493e-05,2]
[423553984,1780217448000,-236.15786682,8.493e-05,2]
[423553985,1780217448000,-431.12575117,8.493e-05,2]
[423553986,1780217448000,-500.0,8.493e-05,2]
[423553987,1780217448000,-233.01,8.493e-05,2]
[423553988,1780217448000,-500.0,8.493e-05,2]
[423554009,1780217448000,-500.0,8.565e-05,2]
[423553992,1780217448000,-500.0,8.493e-05,2]
[423554003,1780217448000,-1000.0,8.493e-05,2]
[423553993,1780217448000,-500.0,8.493e-05,2]
[423553996,1780217448000,-500.0,8.493e-05,2]
[423553995,1780217448000,-500.0,8.493e-05,2]
[423554004,1780217448000,-152.0,8.516e-05,2]
[423553994,1780217448000,-500.0,8.493e-05,2]
[423554001,1780217448000,-500.0,8.493e-05,2]
[423553998,1780217448000,-500.0,8.493e-05,2]
[423554002,1780217448000,-306.96,8.493e-05,2]
[423553997,1780217448000,-500.0,8.493e-05,2]
[423554000,1780217448000,-500.0,8.493e-05,2]
[423554006,1780217448000,-500.0,8.565e-05,2]
[423554005,1780217448000,-500.0,8.565e-05,2]
[423554007,1780217448000,-500.0,8.565e-05,2]
[423554008,1780217448000,-500.0,8.565e-05,2]
[423553952,1780217448000,-500.0,8.493e-05,2]
[423553982,1780217448000,-500.0,8.493e-05,2]
[423553978,1780217448000,-500.0,8.493e-05,2]
[423553999,1780217448000,-500.0,8.493e-05,2]
[423553980,1780217448000,-500.0,8.493e-05,2]
[423553989,1780217448000,-500.0,8.493e-05,2]
[423553954,1780217448000,-500.0,8.493e-05,2]
[423553956,1780217448000,-513.58,8.493e-05,2]
[423553955,1780217448000,-563.45212497,8.493e-05,2]
[423553961,1780217448000,-500.0,8.493e-05,2]
[423553958,1780217448000,-500.0,8.493e-05,2]
[423553960,1780217448000,-500.0,8.493e-05,2]
[423553959,1780217448000,-500.0,8.493e-05,2]
[423553962,1780217448000,-500.0,8.493e-05,2]
[423553965,1780217448000,-500.0,8.493e-05,2]
[423553968,1780217448000,-500.0,8.493e-05,2]
[423553970,1780217448000,-500.0,8.493e-05,2]
[423553957,1780217448000,-500.0,8.493e-05,2]
[423553967,1780217448000,-500.0,8.493e-05,2]
[423553971,1780217448000,-500.0,8.493e-05,2]
[423553990,1780217448000,-500.0,8.493e-05,2]
[423553979,1780217448000,-500.0,8.493e-05,2]
[423553981,1780217448000,-500.0,8.493e-05,2]
[423553975,1780217448000,-519.99,8.493e-05,2]
[423553976,1780217448000,-500.0,8.493e-05,2]
[423553974,1780217448000,-535.45,8.493e-05,2]
[423553972,1780217448000,-500.0,8.493e-05,2]
[423553977,1780217448000,-500.0,8.493e-05,2]
[423553973,1780217448000,-500.0,8.493e-05,2]
[423553969,1780217448000,-500.0,8.493e-05,2]
[423553966,1780217448000,-500.0,8.493e-05,2]
[423554032,1780217449000,-500.0,8.565e-05,2]
[423554044,1780217449000,-500.0,8.565e-05,2]
[423554035,1780217449000,-500.0,8.565e-05,2]
[423554034,1780217449000,-500.0,8.565e-05,2]
[423554037,1780217449000,-170.62265413,8.565e-05,2]
[423554040,1780217449000,-500.0,8.565e-05,2]
[423554042,1780217449000,-500.0,8.565e-05,2]
[423554043,1780217449000,-500.0,8.565e-05,2]
[423554039,1780217449000,-500.0,8.565e-05,2]
[423554048,1780217449000,-500.0,8.565e-05,2]
[423554036,1780217449000,-173.59,8.565e-05,2]
[423554038,1780217449000,-500.0,8.565e-05,2]
[423554045,1780217449000,-500.0,8.565e-05,2]
[423554050,1780217449000,-500.0,8.565e-05,2]
[423554051,1780217449000,-500.0,8.565e-05,2]
[423554047,1780217449000,-500.0,8.565e-05,2]
[423554033,1780217449000,-500.0,8.565e-05,2]
[423554055,1780217449000,-500.0,8.565e-05,2]
[423554041,1780217449000,-500.0,8.565e-05,2]
[423554027,1780217449000,-603.49,8.565e-05,2]
[423554018,1780217449000,-500.0,8.565e-05,2]
[423554019,1780217449000,-500.0,8.565e-05,2]
[423554046,1780217449000,-500.0,8.565e-05,2]
[423554017,1780217449000,-500.0,8.565e-05,2]
[423554016,1780217449000,-500.0,8.565e-05,2]
[423554014,1780217449000,-500.0,8.565e-05,2]
[423554015,1780217449000,-500.0,8.565e-05,2]
[423554011,1780217449000,-500.0,8.565e-05,2]
[423554013,1780217449000,-500.0,8.565e-05,2]
[423554012,1780217449000,-500.5509657,8.565e-05,2]
[423554010,1780217449000,-500.0,8.565e-05,2]
[423554020,1780217449000,-500.0,8.565e-05,2]
[423554022,1780217449000,-500.0,8.565e-05,2]
[423554024,1780217449000,-500.0,8.565e-05,2]
[423554021,1780217449000,-500.0,8.565e-05,2]
[423554023,1780217449000,-500.0,8.565e-05,2]
[423554029,1780217449000,-500.0,8.565e-05,2]
[423554025,1780217449000,-500.0,8.565e-05,2]
[423554030,1780217449000,-500.0,8.565e-05,2]
[423554031,1780217449000,-500.0,8.565e-05,2]
[423554028,1780217449000,-500.0,8.565e-05,2]
[423554026,1780217449000,-500.0,8.565e-05,2]
[423554049,1780217449000,-500.0,8.565e-05,2]
[423554057,1780217449000,-500.0,8.565e-05,2]
[423554052,1780217449000,-402.56714157,8.565e-05,2]
[423554075,1780217449000,-245.93694841,8.767e-05,2]
[423554077,1780217449000,-500.0,8.767e-05,2]
[423554080,1780217449000,-500.0,8.767e-05,2]
[423554082,1780217449000,-500.0,8.767e-05,2]
[423554084,1780217449000,-268.88763795,8.767e-05,2]
[423554083,1780217449000,-210.45206336,8.767e-05,2]
[423554090,1780217449000,-500.0,8.767e-05,2]
[423554086,1780217449000,-500.0,8.767e-05,2]
[423554079,1780217449000,-500.0,8.767e-05,2]
[423554085,1780217449000,-231.11236205,8.767e-05,2]
[423554088,1780217449000,-500.0,8.767e-05,2]
[423554087,1780217449000,-500.0,8.767e-05,2]
[423554091,1780217449000,-500.0,8.767e-05,2]
[423554092,1780217449000,-500.0,8.767e-05,2]
[423554094,1780217449000,-615.96,8.767e-05,2]
[423554095,1780217449000,-500.0,8.767e-05,2]
[423554093,1780217449000,-500.0,8.767e-05,2]
[423554096,1780217449000,-390.94653195,8.767e-05,2]
[423554089,1780217449000,-215.04,8.767e-05,2]
[423554081,1780217449000,-500.0,8.767e-05,2]
[423554078,1780217449000,-214.28,8.767e-05,2]
[423554074,1780217449000,-500.0,8.219e-05,2]
[423554053,1780217449000,-500.0,8.565e-05,2]
[423554056,1780217449000,-500.0,8.565e-05,2]
[423554058,1780217449000,-500.0,8.565e-05,2]
[423554060,1780217449000,-500.0,8.565e-05,2]
[423554070,1780217449000,-500.0,8.565e-05,2]
[423554062,1780217449000,-441.69164258,8.565e-05,2]
[423554071,1780217449000,-26.0479369,8.565e-05,2]
[423554061,1780217449000,-500.0,8.565e-05,2]
[423554059,1780217449000,-500.0,8.565e-05,2]
[423554063,1780217449000,-500.0,8.565e-05,2]
[423554064,1780217449000,-504.12022642,8.565e-05,2]
[423554068,1780217449000,-500.0,8.565e-05,2]
[423554066,1780217449000,-500.0,8.565e-05,2]
[423554069,1780217449000,-498.79564326,8.565e-05,2]
[423554067,1780217449000,-500.0,8.565e-05,2]
[423554065,1780217449000,-500.0,8.565e-05,2]
[423554073,1780217449000,-254.06305159,8.767e-05,2]
[423554072,1780217449000,-124.9520631,8.565e-05,2]
[423554076,1780217449000,-500.66220661,8.767e-05,2]
[423554054,1780217449000,-500.0,8.565e-05,2]
[423554101,1780217600000,5.98622872,0.00019178,120]
[423554103,1780217600000,1030.63408814,0.00020688,30]
[423554100,1780217600000,315.01377128,0.00019178,120]
[423554102,1780217600000,164.11941188,0.00019178,120]
[423554109,1780217684000,108592.87713054,0.0002,120]
[423554108,1780217684000,3504.47696218,0.0002,120]
[423554107,1780217684000,204.0,0.0002,120]
[423554106,1780217684000,721.88058812,0.0002,120]
[423554110,1780217707000,194.0,0.00019291,120]
[423554111,1780217708000,194.0,0.00020256,120]
[423554112,1780217731000,171.0,0.00018366,120]
[423554163,1780218631000,-165.346481,7.89e-05,2]
[423554161,1780218631000,-171.185202,7.786e-05,2]
[423554169,1780218632000,-481.01874526,7.891e-05,2]
[423554167,1780218632000,-1200.0,7.89e-05,2]
[423554172,1780218632000,-500.0,7.891e-05,2]
[423554170,1780218632000,-500.0,7.891e-05,2]
[423554174,1780218632000,-384.52468461,7.891e-05,2]
[423554165,1780218632000,-134.653519,7.89e-05,2]
[423554180,1780218632000,-1146.75208364,7.9e-05,2]
[423554178,1780218632000,-32361.16049034,7.9e-05,2]
[423554189,1780218632000,-12164.22310574,7.9e-05,2]
[423554182,1780218632000,-655.62364041,7.9e-05,2]
[423554184,1780218632000,-407.91950887,7.9e-05,2]
[423554187,1780218632000,-8027.71238034,7.9e-05,2]
[423554176,1780218632000,-37766.92138189,7.892e-05,2]
[423554587,1780218641000,-415.519,7.9e-05,2]
[423556180,1780219290000,22268.75693426,0.00020676,60]
[423556183,1780219334000,11549.23122685,0.00020676,120]
[423556247,1780219832000,-162.797414,7.48e-05,2]
[423556248,1780219832000,-300.0,7.598e-05,2]
[423556246,1780219832000,-162.797414,6.768e-05,2]
[423556250,1780219832000,-300.0,7.598e-05,2]
[423556252,1780219832000,-1200.0,7.599e-05,2]
[423556251,1780219832000,-300.0,7.598e-05,2]
[423556254,1780219832000,-2939.51586338,7.6e-05,2]
[423556253,1780219832000,-500.0,7.599e-05,2]
[423556255,1780219832000,-2661.69890737,7.6e-05,2]
[423556249,1780219832000,-300.0,7.598e-05,2]
[423556404,1780219838000,-171.185202,7.651e-05,2]
[423556405,1780219838000,-199.71528302,7.7e-05,2]
[423556409,1780219838000,-3347.18891274,8e-05,2]
[423556403,1780219838000,-13779.17174171,7.6e-05,2]
[423556408,1780219838000,-587.97596698,8e-05,2]
[423556406,1780219838000,-8971.87583297,7.7e-05,2]
[423556410,1780219838000,-1652.81108726,8e-05,2]
[423556414,1780219838000,-300.0,8.057e-05,2]
[423556412,1780219838000,-300.0,8.057e-05,2]
[423556417,1780219838000,-300.0,8.057e-05,2]
[423556416,1780219838000,-300.0,8.057e-05,2]
[423556411,1780219838000,-5000.0,8e-05,2]
[423556413,1780219838000,-300.0,8.057e-05,2]
[423556407,1780219838000,-4412.02403302,8e-05,2]
[423556415,1780219838000,-300.0,8.057e-05,2]
[423556429,1780219839000,-380.16173233,8.119e-05,2]
[423556428,1780219839000,-21914.89174868,8.119e-05,2]
[423556427,1780219839000,-600.0,8.057e-05,2]
[423556425,1780219839000,-300.0,8.057e-05,2]
[423556423,1780219839000,-300.0,8.057e-05,2]
[423556422,1780219839000,-300.0,8.057e-05,2]
[423556418,1780219839000,-300.0,8.057e-05,2]
[423556419,1780219839000,-300.0,8.057e-05,2]
[423556420,1780219839000,-300.0,8.057e-05,2]
[423556424,1780219839000,-300.0,8.057e-05,2]
[423556421,1780219839000,-300.0,8.057e-05,2]
[423556426,1780219839000,-300.0,8.057e-05,2]
[423556433,1780219841000,-1434.47136648,8e-05,2]
[423556432,1780219841000,-2058.8931608,8e-05,2]
[423556469,1780219853000,-107429.81381986,8.119e-05,2]
[423556460,1780219853000,-1506.63547272,8e-05,2]
[423556463,1780219853000,-110170.11095856,8.119e-05,2]
[423556462,1780219853000,-4913.35858039,8.119e-05,2]
[423556461,1780219853000,-1720.78619095,8.119e-05,2]
[423556465,1780219853000,-2461.52326438,8.119e-05,2]
[423556466,1780219853000,-1233.93026423,8.119e-05,2]
[423556468,1780219853000,-15303.59238438,8.119e-05,2]
[423556467,1780219853000,-5773.19833765,8.119e-05,2]
[423556464,1780219853000,-3393.1107164,8.119e-05,2]
[423556470,1780219870000,-3894.05723152,8e-05,2]
[423556471,1780219886000,-1105.94276848,8e-05,2]
[423556472,1780219903000,-4294.74993576,7.9e-05,2]
[423556512,1780221032000,-172.703928,7.746e-05,2]
[423556510,1780221032000,-169.9479647,6.718e-05,2]
[423556520,1780221032000,-1148.17753385,7.863e-05,2]
[423556522,1780221032000,-300.0,7.864e-05,2]
[423556513,1780221032000,-51.82246615,7.863e-05,2]
[423556524,1780221032000,-300.0,7.864e-05,2]
[423556527,1780221032000,-300.0,7.864e-05,2]
[423556531,1780221032000,-13283.25448058,7.865e-05,2]
[423556529,1780221032000,-300.0,7.864e-05,2]
[423556617,1780221041000,-21696.06395345,7.865e-05,2]
[423556592,1780221041000,-1000.014498,7.865e-05,2]
[423556806,1780221044000,-1559.0,7.865e-05,2]
[423556805,1780221044000,-519.43457887,7.865e-05,2]
[423556797,1780221044000,-5437.07848166,7.865e-05,2]
[423556795,1780221044000,-22920.87812968,7.865e-05,2]
[423556818,1780221046000,-1422.64616073,7.865e-05,2]
[423556821,1780221047000,-1106.02735673,7.865e-05,2]
[423556819,1780221047000,-399.12043455,7.865e-05,2]
[423556820,1780221047000,-22933.09446779,7.865e-05,2]
[423556826,1780221653000,-300.0,7.351e-05,2]
[423556827,1780221670000,-301.0,7.351e-05,2]
[423556828,1780221686000,-300.0,7.352e-05,2]
[423556829,1780221703000,-300.0,7.352e-05,2]
[423556830,1780221720000,-300.0,7.352e-05,2]
[423556831,1780221737000,-300.0,7.351e-05,2]
[423556833,1780221753000,-300.0,7.352e-05,2]
[423556834,1780221771000,-300.0,7.352e-05,2]
[423556835,1780221897000,1000.0,0.00020682,120]
[423556836,1780221928000,164.76,0.00020682,120]
[423556901,1780222232000,-395.03747227,7.117e-05,2]
[423556900,1780222232000,-277.54152773,6.849e-05,2]
[423556893,1780222232000,-304.67423861,6.849e-05,2]
[423557203,1780222239000,-300.0,7.498e-05,2]
[423557202,1780222239000,-300.0,7.498e-05,2]
[423557200,1780222239000,-300.0,7.498e-05,2]
[423557201,1780222239000,-300.0,7.498e-05,2]
[423557198,1780222239000,-300.0,7.498e-05,2]
[423557197,1780222239000,-300.0,7.497e-05,2]
[423557196,1780222239000,-182.761391,7.362e-05,2]
[423557206,1780222239000,-300.0,7.498e-05,2]
[423557199,1780222239000,-300.0,7.498e-05,2]
[423557205,1780222239000,-300.0,7.498e-05,2]
[423557195,1780222239000,-1931.49673003,7.117e-05,2]
[423557208,1780222239000,-300.0,7.498e-05,2]
[423557207,1780222239000,-300.0,7.498e-05,2]
[423557209,1780222239000,-300.0,7.498e-05,2]
[423557216,1780222239000,-1688.48559547,7.665e-05,2]
[423557212,1780222239000,-300.0,7.498e-05,2]
[423557217,1780222239000,-656485.16308769,7.665e-05,2]
[423557211,1780222239000,-300.0,7.498e-05,2]
[423557210,1780222239000,-300.0,7.498e-05,2]
[423557213,1780222239000,-500.0,7.664e-05,2]
[423557215,1780222239000,-199.44223986,7.665e-05,2]
[423557214,1780222239000,-319.82701067,7.664e-05,2]
[423557204,1780222239000,-300.0,7.498e-05,2]
[423557225,1780222244000,-3207.34218725,7.565e-05,2]
[423557224,1780222244000,-2605.21939383,7.565e-05,2]
[423557238,1780222246000,-2253.75558057,7.565e-05,2]
[423557241,1780222350000,200.0,0.00020684,120]
[423557243,1780222350000,287.48571874,0.00020684,120]
[423557242,1780222350000,200.0,0.00020684,120]
[423557246,1780222529000,828.70467995,0.00020692,120]
[423557258,1780222893000,8165.21,0.00020684,60]
[423557260,1780222937000,3464.769376,0.00020684,120]
[423557265,1780223388000,-184.554895,6.233e-05,2]
[423557266,1780223388000,-184.554895,6.397e-05,2]
[423557267,1780223388000,-184.554895,6.561e-05,2]
[423557269,1780223388000,-189.136019,6.732e-05,2]
[423557270,1780223388000,-184.554895,6.889e-05,2]
[423557271,1780223388000,-300.0,7.263e-05,2]
[423557268,1780223388000,-184.554895,6.725e-05,2]
[423557273,1780223402000,-5618.089506,7.265e-05,2]
[423557272,1780223402000,300.0,7.264e-05,2]
[423557299,1780223431000,-55.12075854,7.265e-05,2]
[423557297,1780223431000,-378.0,7.264e-05,2]
[423557302,1780223431000,-14017.44409163,7.265e-05,2]
[423557307,1780223432000,-2680.0,7.265e-05,2]
[423557323,1780223432000,-3086.50611972,7.265e-05,2]
[423557310,1780223432000,-19232.3,7.265e-05,2]
[423557417,1780223438000,-7212.47639791,7.265e-05,2]
[423557664,1780223440000,-4270.83455753,8.057e-05,2]
[423557661,1780223440000,-5000.0,8e-05,2]
[423557663,1780223440000,-1900.04874098,8.057e-05,2]
[423557686,1780223440000,-151.0,8.148e-05,2]
[423557662,1780223440000,-475.01218524,8.057e-05,2]
[423557667,1780223440000,-151.0,8.148e-05,2]
[423557677,1780223440000,-151.0,8.148e-05,2]
[423557666,1780223440000,-151.0,8.148e-05,2]
[423557670,1780223440000,-151.0,8.148e-05,2]
[423557668,1780223440000,-151.0,8.148e-05,2]
[423557669,1780223440000,-151.0,8.148e-05,2]
[423557671,1780223440000,-151.0,8.148e-05,2]
[423557672,1780223440000,-151.0,8.148e-05,2]
[423557673,1780223440000,-151.0,8.148e-05,2]
[423557656,1780223440000,-6685.65470208,7.865e-05,2]
[423557675,1780223440000,-151.0,8.148e-05,2]
[423557674,1780223440000,-162.380719,8.148e-05,2]
[423557678,1780223440000,-234.45084744,8.148e-05,2]
[423557681,1780223440000,-151.0,8.148e-05,2]
[423557680,1780223440000,-151.0,8.148e-05,2]
[423557690,1780223440000,-189.136019,8.149e-05,2]
[423557682,1780223440000,-151.0,8.148e-05,2]
[423557689,1780223440000,-151.0,8.148e-05,2]
[423557687,1780223440000,-151.0,8.148e-05,2]
[423557688,1780223440000,-151.0,8.148e-05,2]
[423557685,1780223440000,-151.0,8.148e-05,2]
[423557676,1780223440000,-151.0,8.148e-05,2]
[423557658,1780223440000,-3287.28741648,8e-05,2]
[423557649,1780223440000,-300.0,7.715e-05,2]
[423557665,1780223440000,-342.42038558,8.057e-05,2]
[423557684,1780223440000,-151.0,8.148e-05,2]
[423557629,1780223440000,-26517.98841742,7.265e-05,2]
[423557630,1780223440000,-58041.81104222,7.365e-05,2]
[423557636,1780223440000,-300.0,7.715e-05,2]
[423557633,1780223440000,-189.136019,7.44e-05,2]
[423557634,1780223440000,-1261.37949011,7.6e-05,2]
[423557632,1780223440000,-1134.64321587,7.394e-05,2]
[423557637,1780223440000,-300.0,7.715e-05,2]
[423557631,1780223440000,-283.94474872,7.394e-05,2]
[423557635,1780223440000,-300.0,7.715e-05,2]
[423557653,1780223440000,-417.85341888,7.865e-05,2]
[423557650,1780223440000,-300.0,7.715e-05,2]
[423557651,1780223440000,-300.0,7.715e-05,2]
[423557652,1780223440000,-600.0,7.715e-05,2]
[423557640,1780223440000,-300.0,7.715e-05,2]
[423557638,1780223440000,-300.0,7.715e-05,2]
[423557644,1780223440000,-300.0,7.715e-05,2]
[423557646,1780223440000,-300.0,7.715e-05,2]
[423557642,1780223440000,-300.0,7.715e-05,2]
[423557645,1780223440000,-300.0,7.715e-05,2]
[423557648,1780223440000,-300.0,7.715e-05,2]
[423557643,1780223440000,-300.0,7.715e-05,2]
[423557647,1780223440000,-300.0,7.715e-05,2]
[423557654,1780223440000,-1671.41367552,7.865e-05,2]
[423557655,1780223440000,-3760.68076992,7.865e-05,2]
[423557659,1780223440000,-5000.0,8e-05,2]
[423557657,1780223440000,-420.0,7.99e-05,2]
[423557660,1780223440000,-156.51531977,8e-05,2]
[423557679,1780223440000,-151.0,8.148e-05,2]
[423557712,1780223440000,-500.0,8.219e-05,2]
[423557692,1780223440000,-1631.93230523,8.193e-05,2]
[423557724,1780223440000,-547.88,8.219e-05,2]
[423557722,1780223440000,-500.0,8.219e-05,2]
[423557721,1780223440000,-500.0,8.219e-05,2]
[423557720,1780223440000,-500.0,8.219e-05,2]
[423557725,1780223440000,-500.74167405,8.219e-05,2]
[423557726,1780223440000,-500.0,8.219e-05,2]
[423557730,1780223440000,-443.50589365,8.219e-05,2]
[423557732,1780223440000,-500.0,8.219e-05,2]
[423557741,1780223440000,-151.0,8.219e-05,2]
[423557733,1780223440000,-501.60488927,8.219e-05,2]
[423557731,1780223440000,-500.0,8.219e-05,2]
[423557739,1780223440000,-151.0,8.219e-05,2]
[423557719,1780223440000,-527.17388175,8.219e-05,2]
[423557745,1780223440000,-500.0,8.219e-05,2]
[423557734,1780223440000,-500.0,8.219e-05,2]
[423557744,1780223440000,-500.0,8.219e-05,2]
[423557746,1780223440000,-151.0,8.219e-05,2]
[423557738,1780223440000,-543.8,8.219e-05,2]
[423557748,1780223440000,-500.0,8.219e-05,2]
[423557758,1780223440000,-500.0,8.219e-05,2]
[423557749,1780223440000,-500.0,8.219e-05,2]
[423557756,1780223440000,-500.0,8.219e-05,2]
[423557755,1780223440000,-500.0,8.219e-05,2]
[423557753,1780223440000,-1044.6825784,8.219e-05,2]
[423557751,1780223440000,-500.71219344,8.219e-05,2]
[423557683,1780223440000,-151.0,8.148e-05,2]
[423557743,1780223440000,-151.0,8.219e-05,2]
[423557723,1780223440000,-500.0,8.219e-05,2]
[423557736,1780223440000,-500.0,8.219e-05,2]
[423557729,1780223440000,-500.0,8.219e-05,2]
[423557703,1780223440000,-500.0,8.219e-05,2]
[423557717,1780223440000,-500.0,8.219e-05,2]
[423557702,1780223440000,-500.0,8.219e-05,2]
[423557691,1780223440000,-408.39146778,8.193e-05,2]
[423557693,1780223440000,-500.0,8.219e-05,2]
[423557697,1780223440000,-500.0,8.219e-05,2]
[423557698,1780223440000,-500.0,8.219e-05,2]
[423557701,1780223440000,-500.64163129,8.219e-05,2]
[423557696,1780223440000,-500.0,8.219e-05,2]
[423557694,1780223440000,-500.0,8.219e-05,2]
[423557700,1780223440000,-500.76285806,8.219e-05,2]
[423557699,1780223440000,-500.0,8.219e-05,2]
[423557704,1780223440000,-500.0,8.219e-05,2]
[423557706,1780223440000,-500.0,8.219e-05,2]
[423557695,1780223440000,-180.52951233,8.219e-05,2]
[423557709,1780223440000,-343.43422947,8.219e-05,2]
[423557727,1780223440000,-500.0,8.219e-05,2]
[423557718,1780223440000,-500.0,8.219e-05,2]
[423557713,1780223440000,-500.75940397,8.219e-05,2]
[423557705,1780223440000,-500.0,8.219e-05,2]
[423557708,1780223440000,-267.473258,8.219e-05,2]
[423557711,1780223440000,-500.0,8.219e-05,2]
[423557728,1780223440000,-500.0,8.219e-05,2]
[423557716,1780223440000,-609.05346805,8.219e-05,2]
[423557715,1780223440000,-500.0,8.219e-05,2]
[423557714,1780223440000,-500.0,8.219e-05,2]
[423557710,1780223440000,-507.72580222,8.219e-05,2]
[423557707,1780223440000,-500.0,8.219e-05,2]
[423557806,1780223441000,-500.0,8.219e-05,2]
[423557807,1780223441000,-500.83385541,8.219e-05,2]
[423557805,1780223441000,-500.0,8.219e-05,2]
[423557801,1780223441000,-556.74195367,8.219e-05,2]
[423557804,1780223441000,-500.0,8.219e-05,2]
[423557802,1780223441000,-500.0,8.219e-05,2]
[423557799,1780223441000,-500.0,8.219e-05,2]
[423557803,1780223441000,-500.0,8.219e-05,2]
[423557797,1780223441000,-500.0,8.219e-05,2]
[423557809,1780223441000,-500.0,8.219e-05,2]
[423557798,1780223441000,-500.0,8.219e-05,2]
[423557808,1780223441000,-500.0,8.219e-05,2]
[423557800,1780223441000,-500.0,8.219e-05,2]
[423557811,1780223441000,-500.0,8.219e-05,2]
[423557833,1780223441000,-500.0,8.219e-05,2]
[423557810,1780223441000,-500.0,8.219e-05,2]
[423557813,1780223441000,-500.0,8.219e-05,2]
[423557820,1780223441000,-500.0,8.219e-05,2]
[423557812,1780223441000,-500.0,8.219e-05,2]
[423557815,1780223441000,-500.0,8.219e-05,2]
[423557819,1780223441000,-575.13,8.219e-05,2]
[423557817,1780223441000,-500.0,8.219e-05,2]
[423557816,1780223441000,-500.0,8.219e-05,2]
[423557814,1780223441000,-413.19926284,8.219e-05,2]
[423557818,1780223441000,-500.0,8.219e-05,2]
[423557822,1780223441000,-500.0,8.219e-05,2]
[423557823,1780223441000,-500.0,8.219e-05,2]
[423557787,1780223441000,-502.47902735,8.219e-05,2]
[423557821,1780223441000,-501.04042135,8.219e-05,2]
[423557792,1780223441000,-500.0,8.219e-05,2]
[423557761,1780223441000,-501.82151251,8.219e-05,2]
[423557791,1780223441000,-500.0,8.219e-05,2]
[423557834,1780223441000,-500.0,8.219e-05,2]
[423557762,1780223441000,-500.91283131,8.219e-05,2]
[423557760,1780223441000,-500.91254864,8.219e-05,2]
[423557763,1780223441000,-500.0,8.219e-05,2]
[423557766,1780223441000,-500.0,8.219e-05,2]
[423557764,1780223441000,-568.78216209,8.219e-05,2]
[423557765,1780223441000,-500.0,8.219e-05,2]
[423557767,1780223441000,-500.0,8.219e-05,2]
[423557769,1780223441000,-300.70422609,8.219e-05,2]